fUSD/lending_fUSD_20260221
["ID","MTS","AMOUNT","RATE_DAILY","PERIOD"]
[406287028,1771690246858,-500.0,0.00044383,120]
[406287029,1771690246867,-500.0,0.00044383,120]
[406287030,1771690246877,-500.0,0.00044383,120]
[406287031,1771690246886,-513.06001173,0.00044383,120]
[406287032,1771690246895,-500.0,0.00044383,60]
[406287033,1771690246905,-538.87115924,0.00044383,60]
[406287034,1771690246915,-500.0,0.00044383,120]
[406287035,1771690246925,-500.0,0.00044383,120]
[406287036,1771690246934,-500.0,0.00044383,120]
[406287037,1771690246943,-500.0,0.00044383,120]
[406287038,1771690246952,-500.0,0.00044383,120]
[406287039,1771690246962,-500.0,0.00044383,120]
[406287040,1771690246971,-500.0,0.00044383,120]
[406287041,1771690246981,-500.0,0.00044383,120]
[406287042,1771690246991,-447.8500293,0.00044383,120]
[406287043,1771690246999,-500.0,0.00044383,120]
[406287044,1771690247009,-500.0,0.00044383,120]
[406287045,1771690247019,-216.69637133,0.00044383,120]
[406287046,1771690247028,-566.47444613,0.00044383,120]
[406287047,1771690247037,-505.6671164,0.00044383,120]
[406287048,1771690247046,-500.0,0.00044383,120]
[406287049,1771690247055,-502.71662714,0.00044383,120]
[406287050,1771690247064,-415.81125948,0.00044383,120]
[406287051,1771690247074,-500.0,0.00044383,120]
[406287052,1771690247083,-500.0,0.00044383,120]
[406287053,1771690247094,-500.0,0.00044383,120]
[406287054,1771690247104,-481.70800823,0.00044383,120]
[406287055,1771690247114,-500.0,0.00044383,120]
[406287056,1771690247123,-500.0,0.00044383,120]
[406287057,1771690247132,-275.38009846,0.00044383,120]
[406287058,1771690247141,-500.0,0.00044383,120]
[406287059,1771690247150,-500.0,0.00044383,120]
[406287060,1771690247159,-542.18895306,0.00044383,120]
[406287061,1771690247168,-500.0,0.00044383,120]
[406287062,1771690247177,-500.0,0.00044383,120]
[406287063,1771690247186,-500.0,0.00044383,120]
[406287064,1771690247195,-500.0,0.00044383,120]
[406287065,1771690247204,-500.0,0.00044383,120]
[406287066,1771690247214,-500.0,0.00044383,120]
[406287067,1771690247224,-500.0,0.00044383,120]
[406287068,1771690247233,-500.0,0.00044383,120]
[406287069,1771690247242,-500.0,0.00044383,120]
[406287070,1771690247251,-500.0,0.00044383,120]
[406287071,1771690247260,-500.0,0.00044383,120]
[406287072,1771690247269,-554.82270552,0.00044383,120]
[406287073,1771690247278,-500.0,0.00044383,120]
[406287074,1771690247287,-500.0,0.00044383,90]
[406287075,1771690247295,-500.0,0.00044383,120]
[406287076,1771690247305,-500.0,0.00044383,120]
[406287077,1771690247315,-500.0,0.00044383,120]
[406287078,1771690247326,-500.26122882,0.00044383,120]
[406287079,1771690247335,-500.0,0.00044383,120]
[406287080,1771690247345,-559.00392202,0.00044383,120]
[406287081,1771690247354,-286.43997381,0.00044383,120]
[406287082,1771690247367,-500.0,0.00044383,120]
[406287083,1771690247377,-286.59,0.00044383,120]
[406287084,1771690247390,-500.0,0.00044383,120]
[406287085,1771690247401,-399.85501955,0.00044383,120]
[406287086,1771690247412,-500.0,0.00044383,120]
[406287087,1771690247422,-500.0,0.00044383,120]
[406287088,1771690247434,-195.36091176,0.00044383,120]
[406287089,1771690247443,-500.0,0.00044383,120]
[406287090,1771690247452,-500.0,0.00044383,120]
[406287091,1771690247461,-500.0,0.00044383,120]
[406287092,1771690247471,-500.0,0.00044383,120]
[406287093,1771690247479,-500.0,0.00044383,120]
[406287094,1771690247489,-500.0,0.00044383,120]
[406287095,1771690247498,-500.0,0.00044383,120]
[406287096,1771690247507,-500.0,0.00044383,120]
[406287097,1771690247516,-486.66234451,0.00044383,120]
[406287098,1771690247525,-534.27115256,0.00044383,120]
[406287099,1771690247534,-500.0,0.00044383,120]
[406287100,1771690247543,-500.0,0.00044383,120]
[406287101,1771690247553,-407.09803879,0.00044383,120]
[406287102,1771690247562,-500.0,0.00044383,120]
[406287103,1771690247571,-500.0,0.00044383,120]
[406287104,1771690247580,-500.0,0.00044383,120]
[406287105,1771690247589,-500.0,0.00044383,120]
[406287106,1771690247598,-474.65875431,0.00044383,120]
[406287107,1771690247608,-351.71886603,0.00044383,120]
[406287108,1771690247617,-339.995832,0.00044383,120]
[406287109,1771690247626,-193.91,0.00044383,120]
[406287110,1771690247635,-500.0,0.00044383,2]
[406287111,1771690247644,-500.7,0.00044383,2]
[406287112,1771690247653,-500.0,0.00044383,120]
[406287113,1771690247662,-500.0,0.00044383,120]
[406287114,1771690247671,-500.0,0.00044383,120]
[406287115,1771690247680,-516.14936163,0.00044383,120]
[406287116,1771690247689,-500.0,0.00044383,120]
[406287117,1771690247698,-528.09562907,0.00044383,120]
[406287118,1771690247708,-500.0,0.00044383,120]
[406287119,1771690247718,-500.0,0.00044383,120]
[406287120,1771690247728,-500.0,0.00044383,120]
[406287121,1771690247737,-500.0,0.00044383,120]
[406287122,1771690247746,-500.0,0.00044383,120]
[406287123,1771690247755,-500.0,0.00044383,120]
[406287124,1771690247764,-442.04425072,0.00044383,120]
[406287125,1771690247774,-270.96714461,0.00044383,120]
[406287126,1771690247783,-7458.57123729,0.00044383,30]
[406287127,1771690247792,-200.0,0.000444,14]
[406287128,1771690247802,-2000.0,0.000444,16]
[406287129,1771690247811,-10658.62,0.000444,14]
[406287130,1771690247821,-150.0,0.000444,120]
[406287131,1771690247830,-150.0,0.000444,120]
[406287132,1771690247839,-150.0,0.000444,120]
[406287133,1771690247848,-150.0,0.000444,120]
[406287134,1771690247858,-200.0,0.000444,16]
[406287135,1771690247867,-152.0,0.000445,120]
[406287136,1771690247876,-2000.0,0.000445,16]
[406287137,1771690247885,-200.0,0.000445,16]
[406287138,1771690247894,-1118.03,0.000446,30]
[406287139,1771690247903,-230.97,0.000446,14]
[406287140,1771690247912,-2000.0,0.000446,16]
[406287141,1771690247922,-200.0,0.000446,16]
[406287142,1771690247932,-2000.0,0.0004462,120]
[406287143,1771690247943,-2000.0,0.0004462,120]
[406287144,1771690247954,-2000.0,0.0004462,120]
[406287145,1771690247964,-2000.0,0.0004462,120]
[406287146,1771690247974,-2000.0,0.0004462,120]
[406287147,1771690247983,-226.37,0.00044641,120]
[406287148,1771690247994,-202.62533237,0.00044699,45]
[406287149,1771690248003,-500.0,0.00044699,45]
[406287150,1771690248012,-545.79913084,0.00044699,45]
[406287151,1771690248023,-200.0,0.00044699,45]
[406287152,1771690248032,-200.0,0.00044699,45]
[406287153,1771690248041,-200.0,0.00044699,45]
[406287154,1771690248050,-2000.0,0.000447,16]
[406287155,1771690248059,-200.0,0.000447,16]
[406287156,1771690248076,-2379.0,0.000448,16]
[406287157,1771690248088,-200.0,0.000448,16]
[406287158,1771690248097,-700.0,0.00044818,2]
[406287159,1771690248107,-169719.4556804,0.00044877,2]
[406287160,1771690248116,-8884.9624756,0.00044877,2]
[406287161,1771690248125,-23538.28974273,0.00044923,15]
[406287162,1771690248135,-198.45237354,0.00044969,28]
[406287163,1771690248144,-215.55296208,0.00044969,2]
[406287164,1771690248154,-181.8814438,0.00044969,2]
[406287165,1771690248163,-400.0,0.0004497,3]
[406287166,1771690248172,-743.9005063,0.0004497,3]
[406287167,1771690248182,-500.0,0.00044973,10]
[406287168,1771690248192,-1000.0,0.00044978,120]
[406287169,1771690248201,-1006.75,0.00044978,2]
[406287170,1771690248210,-151.0,0.00044997,120]
[406287171,1771690248220,-173.74378417,0.00045,10]
[406287172,1771690248230,-72851.0,0.00045,60]
[406287173,1771690248239,-160.0,0.00045,120]
[406287174,1771690248248,-401.22,0.00045032,14]
[406287175,1771690248258,-817.19599998,0.00045042,6]
[406287176,1771690248271,-401.22,0.00045042,14]
[406287177,1771690248280,-401.22,0.00045051,14]
[406287178,1771690248290,-157.57454607,0.00045059,7]
[406287179,1771690248299,-742.0,0.0004506,30]
[406287180,1771690248309,-151.0,0.00045066,120]
[406287181,1771690248318,-2000.0,0.00045068,120]
[406287182,1771690248327,-282.41570076,0.00045069,2]
[406287183,1771690248337,-7458.57123729,0.00045069,30]
[406287184,1771690248347,-7458.57123729,0.00045069,30]
[406287185,1771690248358,-7458.57123729,0.00045069,30]
[406287186,1771690248369,-864.91152357,0.00045069,120]
[406287187,1771690248379,-55324.09050037,0.00045069,56]
[406287188,1771690248501,-8721.2708305,0.00045069,56]
[406287189,1771690248516,-448.27601314,0.00044969,120]
[406287190,1771690248526,-143130.56339977,0.00045069,56]
[406287191,1771690248535,-104799.85116221,0.00045069,10]
[406287192,1771690248873,-10000.0,0.00045069,10]
[406287193,1771690248909,-3122.87040922,0.00045069,10]
[406287194,1771690248920,-8849.29004784,0.00045069,10]
[406287195,1771690248934,-5486.62137138,0.00040253,2]
[406287196,1771690248946,-489.37862862,0.00040253,2]
[406287197,1771690248956,-2815.63138128,0.00045069,10]
[406287198,1771690248971,-304.3,0.00031064,2]
[406287199,1771690248980,-254084.03293831,0.00045069,10]
[406287200,1771690248992,-57264.5980398,0.00045069,10]
[406287201,1771690249003,-289.2021296,0.00045069,10]
[406287202,1771690249016,-825.89185212,0.00045069,10]
[406287203,1771690249027,-1377.00927173,0.00045069,10]
[406287204,1771690249039,-588.0,0.00045069,10]
[406287205,1771690249050,-507.04547635,0.00045069,10]
[406287206,1771690249120,-335.4,0.0001328,2]
[406287207,1771690249138,-423.95,0.0001328,2]
[406287208,1771690312202,-300.0,0.00013278,2]
[406287209,1771690318351,800.0,0.000126,4]
[406287210,1771690319894,215.55296208,0.00013179,2]
[406287211,1771690320455,1600.0,0.000127,4]
[406287212,1771690321807,150.0,0.00013278,2]
[406287213,1771690321886,300.0,0.00013278,2]
[406287214,1771690322540,2400.0,0.000128,4]
[406287215,1771690324637,3200.0,0.000129,4]
[406287216,1771690342404,-198.45237354,0.00013179,2]
[406287217,1771690343928,846.82852883,0.0001,2]
[406287218,1771690348150,8756.27672409,0.00013179,2]
[406287219,1771690348176,1023.08674438,0.00013179,2]
[406287220,1771690359694,150.0,0.00013252,2]
[406287221,1771690360192,150.0,0.00013252,2]
[406287222,1771690371584,1843.10919238,0.00013179,2]
[406287223,1771690423133,500.0,0.00013178,2]
[406287224,1771690431728,1018.43216428,0.00013278,3]
[406287225,1771690431782,1018.43216428,0.00013278,3]
[406287226,1771690431841,1018.43216428,0.00013278,3]
[406287227,1771690431893,1018.43216429,0.00013278,3]
[406287228,1771690442688,1018.43216429,0.00013278,3]
[406287229,1771690442726,1018.43216429,0.00013278,3]
[406287230,1771690442784,223.22107753,0.00013278,3]
[406287231,1771690442807,795.21108676,0.00013278,3]
[406287232,1771690442836,1018.43216429,0.00013278,3]
[406287233,1771690465352,-5000.0,0.00013279,2]
[406287234,1771690466683,-5000.0,0.00013279,2]
[406287235,1771690491775,1228.7394616,0.00013179,2]
[406287236,1771690501448,1200.0,0.00013278,2]
[406287237,1771690501822,300.0,0.00013278,2]
[406287238,1771690501899,150.0,0.00013278,2]
[406287239,1771690506390,168.97638326,0.00013278,2]
[406287240,1771690520593,500.0,0.00013278,2]
[406287241,1771690521121,500.0,0.00013278,2]
[406287242,1771690521415,500.0,0.00013278,2]
[406287243,1771690521791,500.0,0.00013278,2]
[406287244,1771690522862,500.0,0.00013278,2]
[406287245,1771690523094,500.0,0.00013278,2]
[406287246,1771690523223,500.0,0.00013278,2]
[406287247,1771690523280,520.52251061,0.00013278,2]
[406287248,1771690523328,500.0,0.00013278,2]
[406287249,1771690523377,500.0,0.00013278,2]
[406287250,1771690523773,118.12839348,0.00013278,2]
[406287251,1771690523805,381.87160652,0.00013278,2]
[406287252,1771690523840,500.0,0.00013278,2]
[406287253,1771690523897,500.0,0.00013278,2]
[406287254,1771690523991,500.0,0.00013278,2]
[406287255,1771690524039,500.0,0.00013278,2]
[406287256,1771690524121,500.0,0.00013278,2]
[406287257,1771690524242,500.0,0.00013278,2]
[406287258,1771690524318,500.0,0.00013278,2]
[406287259,1771690524370,500.0,0.00013278,2]
[406287260,1771690524449,500.0,0.00013278,2]
[406287261,1771690524507,500.0,0.00013278,2]
[406287262,1771690524848,500.0,0.00013278,2]
[406287263,1771690524893,500.0,0.00013278,2]
[406287264,1771690524942,500.0,0.00013278,2]
[406287265,1771690525025,500.0,0.00013278,2]
[406287266,1771690525330,500.0,0.00013278,2]
[406287267,1771690525414,500.0,0.00013278,2]
[406287268,1771690525811,500.0,0.00013278,2]
[406287269,1771690525885,500.0,0.00013278,2]
[406287270,1771690526026,500.0,0.00013278,2]
[406287271,1771690526178,118.13839348,0.00013278,2]
[406287272,1771690526213,381.86160652,0.00013278,2]
[406287273,1771690526252,500.0,0.00013278,2]
[406287274,1771690526296,500.0,0.00013278,2]
[406287275,1771690526346,500.0,0.00013278,2]
[406287276,1771690526474,500.0,0.00013278,2]
[406287277,1771690526538,500.0,0.00013278,2]
[406287278,1771690526846,500.0,0.00013278,2]
[406287279,1771690526894,500.0,0.00013278,2]
[406287280,1771690526965,500.0,0.00013278,2]
[406287281,1771690527022,500.0,0.00013278,2]
[406287282,1771690527087,500.0,0.00013278,2]
[406287283,1771690527184,500.0,0.00013278,2]
[406287284,1771690527229,500.0,0.00013278,2]
[406287285,1771690527318,500.0,0.00013278,2]
[406287286,1771690527369,500.0,0.00013278,2]
[406287287,1771690527421,500.0,0.00013278,2]
[406287288,1771690527484,500.0,0.00013278,2]
[406287289,1771690527567,500.0,0.00013278,2]
[406287290,1771690527752,500.0,0.00013278,2]
[406287291,1771690527803,500.0,0.00013278,2]
[406287292,1771690546743,500.0,0.00013278,2]
[406287293,1771690546792,500.0,0.00013278,2]
[406287294,1771690546838,500.0,0.00013278,2]
[406287295,1771690546880,500.0,0.00013278,2]
[406287296,1771690546933,500.0,0.00013278,2]
[406287297,1771690546983,500.0,0.00013278,2]
[406287298,1771690547045,500.0,0.00013278,2]
[406287299,1771690547101,500.0,0.00013278,2]
[406287300,1771690547138,500.0,0.00013278,2]
[406287301,1771690547172,500.0,0.00013278,2]
[406287302,1771690547397,500.0,0.00013278,2]
[406287303,1771690547443,500.0,0.00013278,2]
[406287304,1771690547480,500.0,0.00013278,2]
[406287305,1771690547516,500.0,0.00013278,2]
[406287306,1771690547552,500.0,0.00013278,2]
[406287307,1771690547586,500.0,0.00013278,2]
[406287308,1771690547621,520.52251061,0.00013278,2]
[406287309,1771690547661,500.0,0.00013278,2]
[406287310,1771690547697,500.0,0.00013278,2]
[406287311,1771690547734,479.48748939,0.00013278,2]
[406287312,1771690547764,20.51251061,0.00013278,2]
[406287313,1771690547800,500.0,0.00013278,2]
[406287314,1771690547834,500.0,0.00013278,2]
[406287315,1771690547868,500.0,0.00013278,2]
[406287316,1771690547910,500.0,0.00013278,2]
[406287317,1771690548093,500.0,0.00013278,2]
[406287318,1771690548137,500.0,0.00013278,2]
[406287319,1771690548293,500.0,0.00013278,2]
[406287320,1771690548349,500.0,0.00013278,2]
[406287321,1771690548399,500.0,0.00013278,2]
[406287322,1771690548454,500.0,0.00013278,2]
[406287323,1771690548507,500.0,0.00013278,2]
[406287324,1771690552166,170.10203448,0.00013179,2]
[406287325,1771690555129,1045.51171664,0.00013278,3]
[406287326,1771690574441,150.0,0.00013252,2]
[406287327,1771690575029,150.0,0.00013252,2]
[406287328,1771690584549,500.0,0.00013179,2]
[406287329,1771690595957,246.88,0.000132,2]
[406287330,1771690604842,2217.00373827,0.00013179,2]
[406287331,1771690604870,10000.01,0.00013179,2]
[406287332,1771690604897,10000.01,0.00013179,2]
[406287333,1771690604924,10000.01,0.00013179,2]
[406287334,1771690604951,10000.01,0.00013179,2]
[406287335,1771690604978,10000.01,0.00013179,2]
[406287336,1771690605005,10000.01,0.00013179,2]
[406287337,1771690643039,500.0,0.0001,2]
[406287338,1771690643739,500.0,0.0001,2]
[406287339,1771690644239,500.0,0.0001,2]
[406287340,1771690646272,500.0,0.0001,2]
[406287341,1771690646783,500.0,0.0001,2]
[406287342,1771690647266,500.0,0.0001,2]
[406287343,1771690647765,727.91077771,0.0001,2]
[406287344,1771690651343,500.0,0.0001,2]
[406287345,1771690654723,500.0,0.0001,2]
[406287346,1771690655209,500.0,0.0001,2]
[406287347,1771690655572,700.0,0.0001,2]
[406287348,1771690655784,500.0,0.0001,2]
[406287349,1771690656312,702.70112286,0.0001,2]
[406287350,1771690656599,700.0,0.0001,2]
[406287351,1771690657087,700.0,0.0001,2]
[406287352,1771690657330,500.0,0.0001,2]
[406287353,1771690657489,500.0,0.0001,2]
[406287354,1771690657584,500.0,0.0001,2]
[406287355,1771690657616,700.0,0.0001,2]
[406287356,1771690657804,500.0,0.0001,2]
[406287357,1771690657973,269.39809943,0.0001,2]
[406287358,1771690657999,230.60190057,0.0001,2]
[406287359,1771690658060,855.58910008,0.0001,2]
[406287360,1771690658096,700.0,0.0001,2]
[406287361,1771690658500,700.0,0.0001,2]
[406287362,1771690658732,700.0,0.0001,2]
[406287363,1771690659252,700.0,0.0001,2]
[406287364,1771690659793,700.0,0.0001,2]
[406287365,1771690660311,700.0,0.0001,2]
[406287366,1771690661246,700.0,0.0001,2]
[406287367,1771690661760,700.0,0.0001,2]
[406287368,1771690662275,700.0,0.0001,2]
[406287369,1771690662744,1000.0,0.0001,2]
[406287370,1771690692461,-300.0,0.00012999,2]
[406287371,1771690692501,-154.0,0.00012999,2]
[406287372,1771690692532,-150.0,0.00012999,2]
[406287373,1771690696536,-9882.24756678,0.00013,2]
[406287374,1771690696659,-10000.01,0.00013,2]
[406287375,1771690698420,-10000.01,0.00013,2]
[406287376,1771690698577,-10000.01,0.00013,2]
[406287377,1771690698705,-10000.01,0.00013,2]
[406287378,1771690698896,-10000.01,0.00013,2]
[406287379,1771690699046,-10000.01,0.00013,2]
[406287380,1771690699245,-10000.01,0.00013,2]
[406287381,1771690699444,-10000.01,0.00013,2]
[406287382,1771690699601,-1282.99271498,0.00013,2]
[406287383,1771690699636,-7434.02457004,0.00013,2]
[406287384,1771690704423,-155.511805,0.00013014,2]
[406287385,1771690704468,-9688.98639,0.00013079,2]
[406287386,1771690704531,-10000.01,0.00013079,2]
[406287387,1771690707644,-212.42933036,0.00013079,2]
[406287388,1771690707677,-360.08430597,0.00013079,2]
[406287389,1771690710334,1200.0,0.00013178,2]
[406287390,1771690721321,3980.19,0.00011233,2]
[406287391,1771690737176,2079.84852939,0.00013079,2]
[406287392,1771690741731,300.0,0.00013178,2]
[406287393,1771690743862,1294.94419795,0.00013,2]
[406287394,1771690743889,548.29445518,0.00013,2]
[406287395,1771690760921,150.0,0.00013152,2]
[406287396,1771690761232,150.0,0.00013152,2]
[406287397,1771690784314,719.76707342,0.00013079,2]
[406287398,1771690801291,1200.0,0.00013178,2]
[406287399,1771690801354,300.0,0.00013178,2]
[406287400,1771690809802,155.94626739,0.00013169,2]
[406287401,1771690822244,170.10203446,0.00013079,2]
[406287402,1771690857588,1841.47974654,0.00013079,2]
[406287403,1771690858523,4764.42042301,0.00013079,2]
[406287404,1771690858550,10000.01,0.00013079,2]
[406287405,1771690858575,8463.31982876,0.00013079,2]
[406287406,1771690861847,150.0,0.00013178,2]
[406287407,1771690870919,4837.58875137,0.00013169,2]
[406287408,1771690888236,151.0,0.00013176,2]
[406287409,1771690889219,151.0,0.00013176,2]
[406287410,1771690889628,151.0,0.00013176,2]
[406287411,1771690892467,2193.54,8.9e-05,2]
[406287412,1771690896850,1828.775,0.00012915,2]
[406287413,1771690896967,153.178,0.00012915,2]
[406287414,1771690914607,479.8447156,0.00013079,2]
[406287415,1771690921728,300.0,0.00013178,2]
[406287416,1771690925262,500.0,0.00013179,2]
[406287417,1771690927536,500.0,0.00013171,2]
[406287418,1771690930657,-1285.80097693,0.00013079,2]
[406287419,1771690930770,-10000.01,0.00013079,2]
[406287420,1771690930963,-10000.01,0.00013079,2]
[406287421,1771690931080,-10000.01,0.00013079,2]
[406287422,1771690931235,-10000.01,0.00013079,2]
[406287423,1771690939537,500.0,0.0001,2]
[406287424,1771690940057,500.0,0.0001,2]
[406287425,1771690940676,500.0,0.0001,2]
[406287426,1771690941048,501.52973822,0.0001,2]
[406287427,1771690941188,500.0,0.0001,2]
[406287428,1771690941431,500.0,0.0001,2]
[406287429,1771690941676,500.0,0.0001,2]
[406287430,1771690941873,500.0,0.0001,2]
[406287431,1771690942254,500.0,0.0001,2]
[406287432,1771690942347,500.0,0.0001,2]
[406287433,1771690942953,600.0,0.0001,2]
[406287434,1771690942996,800.0,0.0001,2]
[406287435,1771690944027,500.0,0.0001,2]
[406287436,1771690944514,500.0,0.0001,2]
[406287437,1771690945030,500.0,0.0001,2]
[406287438,1771690945528,500.0,0.0001,2]
[406287439,1771690946009,500.0,0.0001,2]
[406287440,1771690946509,500.0,0.0001,2]
[406287441,1771690948860,598.48026178,0.0001,2]
[406287442,1771690948888,1.51973822,0.0001,2]
[406287443,1771690949322,600.0,0.0001,2]
[406287444,1771690949803,600.0,0.0001,2]
[406287445,1771690950001,500.0,0.0001,2]
[406287446,1771690950317,600.0,0.0001,2]
[406287447,1771690950472,500.0,0.0001,2]
[406287448,1771690950798,600.0,0.0001,2]
[406287449,1771690950938,537.06886985,0.0001,2]
[406287450,1771690951225,597.29887714,0.0001,2]
[406287451,1771690951265,600.0,0.0001,2]
[406287452,1771690951751,600.0,0.0001,2]
[406287453,1771690952221,600.0,0.0001,2]
[406287454,1771690952684,600.0,0.0001,2]
[406287455,1771690953162,600.0,0.0001,2]
[406287456,1771690953678,600.0,0.0001,2]
[406287457,1771690954182,749.6580404,0.0001,2]
[406287459,1771691138433,155.81,0.00012515,2]
[406287460,1771691200331,-404.97,0.00012485,2]
[406287461,1771691236158,606.16083183,0.0001,2]
[406287462,1771691246563,500.0,0.0001,2]
[406287463,1771691246823,-400.0,0.000125,4]
[406287464,1771691247042,500.0,0.0001,2]
[406287465,1771691356012,150.0,0.00012244,2]
[406287466,1771691384967,152.76,0.00012261,2]
[406287467,1771691418794,388.317725,0.00012329,2]
[406287470,1771691432155,-460.51348595,0.000126,4]
[406287473,1771691432167,-339.48651405,0.000126,4]
[406287476,1771691432176,-250.0,0.00012625,2]
[406287479,1771691432186,-151.8787045,0.0001265,2]
[406287482,1771691432195,-254.0,0.0001265,2]
[406287483,1771691432205,-492.16306466,0.000127,4]
[406287484,1771691432216,-707.83693534,0.000127,4]
[406287485,1771691432226,-1600.0,0.000128,4]
[406287486,1771691432235,-1200.0,0.00012872,2]
[406287487,1771691432245,-300.0,0.00012872,2]
[406287488,1771691432255,-3227.81803649,0.00012873,2]
[406287489,1771691432297,-2661.0,0.00012873,2]
[406287490,1771691432310,-2754.36196351,0.00012873,2]
[406287491,1771691432319,-150.0,0.00012878,2]
[406287492,1771691432329,-1227.65316436,0.00012879,2]
[406287493,1771691432339,-20904.97522662,0.00012879,2]
[406287494,1771691432349,-1277.38776608,0.00012879,2]
[406287495,1771691432359,-18287.45181372,0.00012879,2]
[406287496,1771691432368,-170.10203446,0.00012879,2]
[406287497,1771691432378,-2000.0,0.000129,4]
[406287498,1771691432388,-1500.0,0.00012952,2]
[406287499,1771691432401,-155.9462674,0.00012969,2]
[406287500,1771691432410,-500.0,0.00012978,2]
[406287502,1771691432420,-153.33790828,0.00012978,2]
[406287504,1771691432431,-500.0,0.00012978,2]
[406287506,1771691432441,-500.0,0.00012978,2]
[406287508,1771691432450,-546.33445134,0.00012978,2]
[406287510,1771691432459,-500.0,0.00012978,2]
[406287512,1771691432467,-500.0,0.00012978,2]
[406287514,1771691432477,-500.0,0.00012978,2]
[406287515,1771691432487,-500.0,0.00012978,2]
[406287516,1771691432496,-500.0,0.00012978,2]
[406287517,1771691432505,-500.0,0.00012978,2]
[406287518,1771691432515,-500.0,0.00012978,2]
[406287519,1771691432524,-500.0,0.00012978,2]
[406287520,1771691432533,-500.0,0.00012978,2]
[406287521,1771691432542,-500.0,0.00012978,2]
[406287522,1771691432552,-500.0,0.00012978,2]
[406287523,1771691432562,-500.0,0.00012978,2]
[406287524,1771691432571,-500.0,0.00012978,2]
[406287525,1771691432580,-500.0,0.00012978,2]
[406287526,1771691432590,-500.0,0.00012978,2]
[406287527,1771691432601,-500.0,0.00012978,2]
[406287528,1771691432610,-500.0,0.00012978,2]
[406287529,1771691432619,-500.0,0.00012978,2]
[406287530,1771691432629,-500.0,0.00012978,2]
[406287531,1771691432638,-500.0,0.00012978,2]
[406287532,1771691432647,-500.0,0.00012978,2]
[406287533,1771691432656,-500.0,0.00012978,2]
[406287534,1771691432666,-500.0,0.00012978,2]
[406287535,1771691432675,-500.0,0.00012978,2]
[406287536,1771691432687,-500.0,0.00012978,2]
[406287537,1771691432697,-500.0,0.00012978,2]
[406287538,1771691432706,-500.0,0.00012978,2]
[406287539,1771691432715,-500.0,0.00012978,2]
[406287540,1771691432726,-500.0,0.00012978,2]
[406287541,1771691432735,-500.0,0.00012978,2]
[406287542,1771691432744,-500.0,0.00012978,2]
[406287543,1771691432753,-500.0,0.00012978,2]
[406287544,1771691432763,-500.0,0.00012978,2]
[406287545,1771691432771,-500.0,0.00012978,2]